bitfinex/quotes_BTCUSD_20250515
["timestamp","ask_amount","ask_price","bid_price","bid_amount"]
[1747332863179,2.1408499,103960.0,103950.0,0.00014401]
[1747332864536,2.08679497,103960.0,103950.0,0.00014401]
[1747332871292,2.43463971,103960.0,103950.0,0.00014401]
[1747332871516,1.95312779,103950.0,103940.0,0.002]
[1747332871742,6.59767884,103950.0,103940.0,0.002]
[1747332871975,0.57728416,103930.0,103920.0,0.002]
[1747332872196,1.47987356,103930.0,103920.0,0.002]
[1747332872420,1.5342855,103930.0,103920.0,0.002]
[1747332873313,1.5382855,103930.0,103920.0,0.002]
[1747332873533,1.5402855,103930.0,103920.0,0.002]
[1747332874424,1.6375949,103930.0,103920.0,0.002]
[1747332877420,1.05526027,103930.0,103920.0,0.002]
[1747332877617,0.66558027,103930.0,103920.0,0.002]
[1747332877787,1.05526027,103930.0,103920.0,0.002]
[1747332878028,0.84432027,103930.0,103920.0,0.002]
[1747332878250,1.03916027,103930.0,103920.0,0.002]
[1747332878669,0.64948027,103930.0,103920.0,0.002]
[1747332878891,1.02296027,103930.0,103920.0,0.002]
[1747332880653,0.60736027,103930.0,103920.0,0.002]
[1747332883534,0.41252027,103930.0,103920.0,0.002]
[1747332883744,0.60736027,103930.0,103920.0,0.002]
[1747332886683,0.22730213,103930.0,103920.0,0.32631005]
[1747332886891,0.22970418,103930.0,103920.0,0.67581412]
[1747332887115,0.62656325,103930.0,103920.0,0.68543644]
[1747332887727,0.61694213,103930.0,103920.0,0.67581431]
[1747332887937,0.61494213,103930.0,103920.0,0.67581431]
[1747332888159,0.61194213,103930.0,103920.0,0.34251042]
[1747332888359,0.61294213,103930.0,103920.0,0.34251042]
[1747332888567,0.60332074,103930.0,103920.0,0.31668782]
[1747332888798,0.61332074,103930.0,103920.0,0.32631042]
[1747332888997,0.61332074,103930.0,103920.0,0.33593292]
[1747332891133,0.61332074,103930.0,103920.0,0.36065533]
[1747332893655,0.61332074,103930.0,103920.0,0.33178782]
[1747332893881,0.61332074,103930.0,103920.0,0.32631032]
[1747332894113,0.61332074,103930.0,103920.0,0.33593264]
[1747332894559,0.20684,103930.0,103920.0,0.69395866]
[1747332894784,0.22608232,103930.0,103920.0,0.69395866]
[1747332894998,0.24532557,103930.0,103920.0,0.69395866]
[1747332895232,0.24532557,103930.0,103920.0,0.36065477]
[1747332896603,0.24532557,103930.0,103920.0,0.69395866]
[1747332896951,0.25494733,103930.0,103920.0,0.36065477]
[1747332897104,0.43776352,103930.0,103920.0,0.33178782]
[1747332897337,0.43776408,103930.0,103920.0,0.33593292]
[1747332897504,0.43776408,103930.0,103920.0,0.34555533]
[1747332897709,0.43776408,103930.0,103920.0,0.35517756]
[1747332899119,0.43776408,103930.0,103920.0,0.34555533]
[1747332899323,0.43776408,103930.0,103920.0,0.33025533]
[1747332899531,0.43776408,103930.0,103920.0,0.0993094]
[1747332899746,0.44922083,103930.0,103920.0,0.0993094]
[1747332902297,0.44922083,103930.0,103920.0,0.002]
[1747332902298,0.86616235,103930.0,103920.0,0.002]
[1747332902500,0.78252472,103930.0,103920.0,0.002]
[1747332902700,1.12252472,103930.0,103920.0,0.002]
[1747332903118,1.21983412,103930.0,103920.0,0.002]
[1747332903338,6.63767886,103930.0,103920.0,0.002]
[1747332903963,1.24437497,103930.0,103920.0,0.002]
[1747332904176,1.22783412,103930.0,103920.0,0.002]
[1747332904380,1.41235412,103930.0,103920.0,0.002]
[1747332904556,1.52166352,103930.0,103920.0,0.002]
[1747332904972,1.52066352,103930.0,103920.0,0.002]
[1747332905176,1.52866352,103930.0,103920.0,0.002]
[1747332905819,1.51866352,103930.0,103920.0,0.002]
[1747332906033,1.52866352,103930.0,103920.0,0.002]
[1747332906224,1.12930352,103930.0,103920.0,0.002]
[1747332906432,1.52866352,103930.0,103920.0,0.002]
[1747332908520,1.86196741,103930.0,103920.0,0.002]
[1747332909146,1.88650826,103930.0,103920.0,0.002]
[1747332909960,1.98770826,103930.0,103920.0,0.002]
[1747332910171,1.88650826,103930.0,103920.0,0.002]
[1747332911593,0.58362101,103910.0,103900.0,0.002]
[1747332911792,1.86598343,103910.0,103900.0,0.00248032]
[1747332913009,1.47658343,103910.0,103900.0,0.00248032]
[1747332913217,1.73630301,103910.0,103900.0,0.00248032]
[1747332913484,1.35194301,103910.0,103900.0,0.00248032]
[1747332913666,1.40799912,103910.0,103900.0,0.00248032]
[1747332913839,1.01863912,103910.0,103900.0,0.00248032]
[1747332914045,1.39139912,103910.0,103900.0,0.00248032]
[1747332914702,1.03609912,103910.0,103900.0,0.00248032]
[1747332916228,1.36940301,103910.0,103900.0,0.00248032]
[1747332916345,1.38540301,103910.0,103900.0,0.00248032]
[1747332916556,1.83911241,103910.0,103900.0,0.00248032]
[1747332916989,1.93642181,103910.0,103900.0,0.00248032]
[1747332917554,1.83911241,103910.0,103900.0,0.00248032]
[1747332917725,1.74180301,103910.0,103900.0,0.00248032]
[1747332919085,1.83911241,103910.0,103900.0,0.00248032]
[1747332921266,1.50580852,103910.0,103900.0,0.00248032]
[1747332921480,1.83911241,103910.0,103900.0,0.00248032]
[1747332921939,1.45940177,103910.0,103900.0,0.00248032]
[1747332922134,1.84876177,103910.0,103900.0,0.00248032]
[1747332923352,1.94607117,103910.0,103900.0,0.00248032]
[1747332924438,1.84876177,103910.0,103900.0,0.00248032]
[1747332933704,1.45940177,103910.0,103900.0,0.00248032]
[1747332934035,1.84852177,103910.0,103900.0,0.00248032]
[1747332936860,1.39185912,103910.0,103900.0,0.00248032]
[1747332937067,0.98673912,103910.0,103900.0,0.00248032]
[1747332937441,1.37585912,103910.0,103900.0,0.01908032]
[1747332939211,1.37585912,103910.0,103900.0,0.00248032]
[1747332939475,1.40342349,103910.0,103900.0,0.00248032]
[1747332940012,1.37585912,103910.0,103900.0,0.00248032]
[1747332940427,1.74172301,103910.0,103900.0,0.00248032]
[1747332940632,1.75116734,103910.0,103900.0,0.00248032]
[1747332944558,1.76116734,103910.0,103900.0,0.00248032]
[1747332947399,1.76112734,103910.0,103900.0,0.00248032]
[1747332947853,1.85843674,103910.0,103900.0,0.00248032]
[1747332949818,1.95574614,103910.0,103900.0,0.00248032]
[1747332950037,1.96574614,103910.0,103900.0,0.00248032]
[1747332952648,1.99464014,103910.0,103900.0,0.00248032]
[1747332954457,1.89725074,103910.0,103900.0,0.00248032]
[1747332954907,1.69285074,103910.0,103900.0,0.00248032]
[1747332955112,1.88725074,103910.0,103900.0,0.00248032]
[1747332955321,1.74504734,103910.0,103900.0,0.00248032]
[1747332958349,1.73560301,103910.0,103900.0,0.00248032]
[1747332959120,1.83291241,103910.0,103900.0,0.00248032]
[1747332961081,0.85129912,103910.0,103900.0,0.03488032]
[1747332961281,1.04565912,103910.0,103900.0,0.03488032]
[1747332962427,1.04565912,103910.0,103900.0,0.01878032]
[1747332962835,1.37896301,103910.0,103900.0,0.01878032]
[1747332963543,1.3647049,103910.0,103900.0,0.01878032]
[1747332963986,1.3646649,103910.0,103900.0,0.03498032]
[1747332964360,1.03136101,103910.0,103900.0,0.03498032]
[1747332965311,0.64248101,103910.0,103900.0,0.03498032]
[1747332965547,1.03112101,103910.0,103900.0,0.03498032]
[1747332965755,0.83680101,103910.0,103900.0,0.2274731]
[1747332965972,0.22856621,103910.0,103900.0,0.246722]
[1747332966182,0.015,103910.0,103900.0,0.69658354]
[1747332966352,0.015,103910.0,103900.0,0.77452966]
[1747332966577,0.015,103910.0,103900.0,1.12907051]
[1747332966781,0.013,103910.0,103900.0,1.12907051]
[1747332967192,0.013,103910.0,103900.0,1.13007051]
[1747332967401,0.013,103910.0,103900.0,1.13107051]
[1747332967594,0.01,103930.0,103920.0,0.9409677]
[1747332967811,0.01,103930.0,103920.0,1.0382771]
[1747332969659,0.01,103930.0,103920.0,1.37158099]
[1747332970240,0.01,103930.0,103920.0,1.37358099]
[1747332970450,0.01,103930.0,103920.0,1.37658099]
[1747332970616,0.01,103930.0,103920.0,1.0382771]
[1747332971010,0.01,103930.0,103920.0,1.0482771]
[1747332972081,0.01,103930.0,103920.0,0.71497321]
[1747332972284,0.01,103930.0,103920.0,1.0482771]
[1747332972493,0.01962102,103930.0,103920.0,1.0482771]
[1747332972694,0.01,103930.0,103920.0,1.0482771]
[1747332974295,0.01,103930.0,103920.0,1.57582099]
[1747332976234,0.01,103930.0,103920.0,1.56982099]
[1747332976600,0.011,103930.0,103920.0,1.57682099]
[1747332976932,0.011,103930.0,103920.0,3.60439899]
[1747332977143,0.011,103930.0,103920.0,3.60039899]
[1747332977427,0.002,103950.0,103940.0,0.58202512]
[1747332977614,0.002,103950.0,103940.0,0.87357452]
[1747332979247,0.04047779,103950.0,103940.0,0.65958978]
[1747332979553,0.0404777,103950.0,103940.0,0.65958978]
[1747332979728,0.24254585,103950.0,103940.0,0.66058978]
[1747332979939,0.05014548,103950.0,103940.0,0.66058978]
[1747332980113,0.03090593,103950.0,103940.0,0.66058978]
[1747332980315,0.03090584,103950.0,103940.0,0.66058978]
[1747332980730,0.03090575,103950.0,103940.0,0.99389367]
[1747332980931,0.26392548,103950.0,103940.0,0.0993094]
[1747332981203,0.7721914,103950.0,103940.0,0.002]
[1747332981687,0.43888751,103950.0,103940.0,0.002]
[1747332981926,1.1121914,103950.0,103940.0,0.002]
[1747332982137,1.3062714,103950.0,103940.0,0.001]
[1747332982370,1.4035808,103950.0,103940.0,0.003]
[1747332982582,1.5008902,103950.0,103940.0,0.003]
[1747332983441,0.23770167,103930.0,103920.0,0.22132293]
[1747332983649,0.43174167,103930.0,103920.0,0.22132293]
[1747332984085,0.40572046,103930.0,103910.0,0.2117039]
[1747332984304,0.40572046,103930.0,103910.0,0.0973094]
[1747332984305,0.23632306,103920.0,103910.0,0.0973094]
[1747332984520,0.22670102,103920.0,103910.0,0.29940727]
[1747332984737,0.22670102,103920.0,103910.0,0.0973094]
[1747332985007,0.24250102,103920.0,103900.0,0.21374159]
[1747332985226,0.2274212,103910.0,103900.0,0.33029924]
[1747332985440,0.4214612,103910.0,103900.0,0.33029924]
[1747332986346,0.22898658,103910.0,103900.0,0.33992323]
[1747332986576,0.24828071,103910.0,103900.0,0.34292323]
[1747332987267,0.01929395,103910.0,103900.0,0.34292323]
[1747332987476,0.03854081,103910.0,103900.0,0.34692323]
[1747332987892,0.01929395,103910.0,103900.0,0.34692323]
[1747332988290,0.02929395,103910.0,103900.0,0.34692323]
[1747332988495,0.0196708,103910.0,103900.0,0.68022712]
[1747332988697,0.01004793,103910.0,103900.0,0.68022712]
[1747332989138,0.01004793,103910.0,103900.0,0.70532712]
[1747332990780,0.01004793,103910.0,103900.0,0.69522712]
[1747332994859,0.0196709,103910.0,103900.0,0.34692323]
[1747332994994,0.01004793,103910.0,103900.0,0.34692323]
[1747332995399,0.0196708,103910.0,103900.0,0.34692323]
[1747332995798,0.01004793,103910.0,103900.0,0.68022712]
[1747332996437,0.01004793,103910.0,103900.0,1.04602712]
[1747332996641,0.01004793,103910.0,103900.0,1.03592712]
[1747332998195,0.01004793,103910.0,103900.0,0.34692323]
[1747332998395,0.05531766,103910.0,103900.0,0.34692323]
[1747332998598,0.24779191,103910.0,103900.0,0.32767525]
[1747332998755,0.26369191,103910.0,103900.0,0.32767525]
[1747332998955,0.27331562,103910.0,103900.0,0.33729942]
[1747332999164,0.08084137,103910.0,103900.0,0.34692341]
[1747332999563,0.08084128,103910.0,103900.0,0.34692341]
[1747333000325,0.27331553,103910.0,103900.0,0.29880218]
[1747333000523,0.78133321,103910.0,103900.0,0.009]
[1747333000748,0.44802932,103910.0,103900.0,0.009]
[1747333001696,0.44802932,103910.0,103900.0,0.20149278]
[1747333001882,0.44802932,103910.0,103900.0,0.009]
[1747333002250,0.44802932,103910.0,103900.0,0.006]
[1747333002456,0.25555507,103910.0,103900.0,0.22836585]
[1747333002663,0.0360708,103910.0,103900.0,0.66460313]
[1747333002870,0.04854071,103910.0,103900.0,0.66460313]
[1747333003069,0.25741496,103910.0,103900.0,0.31505117]
[1747333003273,0.25456894,103910.0,103900.0,0.30542681]
[1747333003428,0.25456894,103910.0,103900.0,0.1033094]
[1747333003631,0.4388657,103910.0,103900.0,0.006]
[1747333009661,0.77216959,103910.0,103900.0,0.006]
[1747333010384,1.20947899,103910.0,103900.0,0.006]
[1747333010815,1.11216959,103910.0,103900.0,0.002]
[1747333011016,0.91824959,103910.0,103900.0,0.002]
[1747333011181,1.30616959,103910.0,103900.0,0.002]
[1747333012344,1.30816959,103910.0,103900.0,0.002]
[1747333012548,1.30616959,103910.0,103900.0,0.002]
[1747333013085,1.30916959,103910.0,103900.0,0.002]
[1747333013494,1.31116959,103910.0,103900.0,0.002]
[1747333015538,1.40847899,103910.0,103900.0,0.002]
[1747333016661,1.77632373,103910.0,103900.0,0.002]
[1747333016871,1.77632373,103910.0,103880.0,0.002]
[1747333016872,1.25016957,103890.0,103880.0,0.002]
[1747333017094,1.63812957,103890.0,103880.0,0.002]
[1747333017522,1.30482568,103890.0,103880.0,0.002]
[1747333018414,1.30482568,103890.0,103880.0,0.003]
[1747333019397,1.30482568,103890.0,103880.0,0.002]
[1747333019627,1.30682568,103890.0,103880.0,0.002]
[1747333021207,1.73743897,103890.0,103880.0,0.002]
[1747333021647,1.75197982,103890.0,103880.0,0.002]
[1747333021823,1.85928922,103890.0,103880.0,0.002]
[1747333022364,1.86928922,103890.0,103880.0,0.002]
[1747333023490,1.86728922,103890.0,103880.0,0.002]
[1747333023641,1.87028922,103890.0,103880.0,0.002]
[1747333024028,1.88028922,103890.0,103880.0,0.002]
[1747333024678,1.78297982,103890.0,103880.0,0.002]
[1747333025459,1.78497982,103890.0,103880.0,0.002]
[1747333026353,6.82497982,103890.0,103880.0,0.002]
[1747333026753,6.91617982,103890.0,103880.0,0.002]
[1747333026953,0.90991033,103870.0,103860.0,0.002]
[1747333027155,7.38122998,103870.0,103860.0,0.002]
[1747333027356,7.46242998,103870.0,103860.0,0.002]
[1747333028193,7.46247788,103870.0,103860.0,0.002]
[1747333028994,7.46647788,103870.0,103860.0,0.002]
[1747333029895,7.46947788,103870.0,103860.0,0.002]
[1747333030071,6.98039788,103870.0,103860.0,0.002]
[1747333030332,7.36831788,103870.0,103860.0,0.002]
[1747333030750,7.38266356,103870.0,103860.0,0.002]
[1747333032238,6.71605578,103870.0,103860.0,0.002]
[1747333032445,6.96205027,103870.0,103860.0,0.002]
[1747333032650,1.91205027,103870.0,103860.0,0.002]
[1747333033430,1.92205027,103870.0,103860.0,0.002]
[1747333034614,1.91205027,103870.0,103860.0,0.002]
[1747333034826,1.98548132,103870.0,103860.0,0.002]
[1747333034998,1.60756132,103870.0,103860.0,0.002]
[1747333035205,1.56878638,103870.0,103860.0,0.002]
[1747333035432,1.92209027,103870.0,103860.0,0.002]
[1747333035634,2.25539416,103870.0,103860.0,0.002]
[1747333036040,1.93209027,103870.0,103860.0,0.002]
[1747333037086,1.88369027,103870.0,103860.0,0.002]
[1747333037285,1.98099967,103870.0,103860.0,0.002]
[1747333037911,1.88369027,103870.0,103860.0,0.002]
[1747333038122,1.47118942,103870.0,103860.0,0.002]
[1747333038326,1.85914942,103870.0,103860.0,0.002]
[1747333041732,2.20699416,103870.0,103860.0,0.002]
[1747333041911,2.21699416,103870.0,103860.0,0.002]
[1747333042306,2.31430356,103870.0,103860.0,0.002]
[1747333045927,1.98099967,103870.0,103860.0,0.002]
[1747333046390,1.66973027,103870.0,103860.0,0.002]
[1747333046600,1.47573027,103870.0,103860.0,0.002]
[1747333046848,1.86369027,103870.0,103860.0,0.002]
[1747333047259,1.84914942,103870.0,103860.0,0.002]
[1747333050154,1.85914942,103870.0,103860.0,0.002]
[1747333050355,2.31430356,103870.0,103860.0,0.002]
[1747333054786,1.53308687,103850.0,103840.0,0.002]
[1747333055394,6.90639076,103850.0,103840.0,0.002]
[1747333055594,6.92630695,103850.0,103840.0,0.002]
[1747333055782,6.59700306,103850.0,103840.0,0.002]
[1747333060791,6.93030695,103850.0,103840.0,0.002]
[1747333060959,0.55188415,103830.0,103820.0,0.002]
[1747333061176,2.22132515,103830.0,103820.0,0.002]
[1747333061427,2.15200133,103830.0,103820.0,0.002]
[1747333061647,2.17654218,103830.0,103820.0,0.002]
[1747333061854,2.18654218,103830.0,103820.0,0.002]
[1747333062241,2.18654218,103830.0,103820.0,0.00348032]
[1747333062445,2.22786796,103830.0,103820.0,0.00348032]
[1747333062683,2.22786796,103830.0,103820.0,0.00248032]
[1747333062892,2.22986796,103830.0,103820.0,0.00248032]
[1747333064359,2.23086796,103830.0,103820.0,0.00248032]
[1747333064915,2.33206796,103830.0,103820.0,0.00248032]
[1747333066608,1.94414796,103830.0,103820.0,0.00248032]
[1747333066934,2.33206796,103830.0,103820.0,0.00248032]
[1747333067134,0.72827355,103830.0,103820.0,0.00248032]
[1747333067336,0.63096415,103830.0,103820.0,0.03018032]
[1747333067537,1.01896415,103830.0,103820.0,0.03018032]
[1747333067719,0.55488415,103830.0,103820.0,0.30076754]
[1747333067925,0.93325349,103830.0,103820.0,0.11775849]
[1747333068103,0.93325349,103830.0,103820.0,0.10812644]
[1747333068570,0.93325349,103830.0,103820.0,0.32003117]
[1747333068571,0.59225349,103830.0,103820.0,0.32003117]
[1747333068704,0.59025349,103830.0,103820.0,0.30076754]
[1747333068909,0.93025349,103830.0,103820.0,0.30076754]
[1747333069311,0.59025349,103830.0,103820.0,0.30076754]
[1747333069517,0.59025349,103830.0,103820.0,0.23245347]
[1747333069733,0.92062255,103830.0,103820.0,0.03018032]
[1747333069938,0.92062255,103830.0,103820.0,0.23245347]
[1747333070477,0.92062255,103830.0,103820.0,0.03981237]
[1747333071687,0.92062255,103830.0,103820.0,0.23245347]
[1747333071885,0.53262255,103830.0,103820.0,0.24208543]
[1747333072121,0.92054255,103830.0,103820.0,0.2517172]
[1747333072309,0.92054255,103830.0,103820.0,0.27098028]
[1747333072310,0.73755038,103830.0,103820.0,0.27098028]
[1747333072515,0.74718132,103830.0,103820.0,0.27098028]
[1747333072892,0.74718104,103830.0,103820.0,0.27098028]
[1747333073097,0.75681198,103830.0,103820.0,0.27298028]
[1747333073295,0.60941394,103840.0,103830.0,0.24961508]
[1747333073499,0.94941394,103840.0,103830.0,0.24961508]
[1747333073902,0.75680929,103840.0,103830.0,0.25924555]
[1747333074295,0.9686734,103840.0,103830.0,0.25924555]
[1747333074504,0.96867405,103840.0,103830.0,0.23998451]
[1747333074711,0.95904423,103840.0,103830.0,0.24961526]
[1747333074914,0.94941431,103840.0,103830.0,0.24961526]
[1747333075298,0.9397843,103840.0,103830.0,0.24961526]
[1747333076290,0.9397843,103840.0,103830.0,0.25161526]
[1747333077027,0.9397843,103840.0,103830.0,0.25261526]
[1747333077268,0.22284911,103840.0,103830.0,0.69285902]
[1747333077473,0.23112312,103840.0,103830.0,0.69285902]
[1747333077675,0.21186393,103840.0,103830.0,0.0311]
[1747333077878,0.40578374,103840.0,103830.0,0.24298451]
[1747333078080,0.41541356,103840.0,103830.0,0.23335367]
[1747333078353,0.41541356,103840.0,103830.0,0.26224611]
[1747333078534,0.41541356,103840.0,103830.0,0.2429847]
[1747333078741,0.40578392,103840.0,103830.0,0.2622463]
[1747333078946,0.40578392,103840.0,103830.0,0.25261564]
[1747333079346,0.40578392,103840.0,103830.0,0.26224639]
[1747333079768,0.40578392,103840.0,103830.0,0.25261564]
[1747333079945,0.40578392,103840.0,103830.0,0.26224639]
[1747333080153,0.40578392,103840.0,103830.0,0.27187696]
[1747333080320,0.41541412,103840.0,103830.0,0.25261564]
[1747333080741,0.21317937,103840.0,103830.0,0.70249015]
[1747333080942,0.01925937,103840.0,103830.0,0.70249015]
[1747333081147,0.22280938,103840.0,103830.0,0.36918626]
[1747333081349,0.41541338,103840.0,103830.0,0.35955579]
[1747333081548,0.40578383,103840.0,103830.0,0.34992504]
[1747333081786,0.40578383,103840.0,103830.0,0.1284094]
[1747333082121,0.386524,103840.0,103830.0,0.019]
[1747333082665,0.386524,103840.0,103830.0,0.21162255]
[1747333082878,0.386524,103840.0,103830.0,0.22125367]
[1747333083079,0.386524,103840.0,103830.0,0.019]
[1747333084111,0.71982789,103840.0,103830.0,0.003]
[1747333084351,0.386524,103840.0,103830.0,0.003]
[1747333084506,0.386524,103840.0,103830.0,0.0187]
[1747333085144,0.386524,103840.0,103830.0,0.23058461]
[1747333085342,0.386524,103840.0,103830.0,0.24268461]
[1747333085543,0.386524,103840.0,103830.0,0.23305367]
[1747333085807,0.192604,103840.0,103830.0,0.25231545]
[1747333086010,0.192604,103840.0,103830.0,0.23305367]
[1747333086338,0.192604,103840.0,103830.0,0.2426847]
[1747333086739,0.192604,103840.0,103830.0,0.2305847]
[1747333087474,0.192604,103840.0,103830.0,0.003]
[1747333087677,0.89680789,103840.0,103830.0,0.003]
[1747333087905,0.99411729,103840.0,103830.0,0.003]
[1747333088124,0.89680789,103840.0,103830.0,0.003]
[1747333091225,0.563504,103840.0,103830.0,0.003]
[1747333091437,0.89680789,103840.0,103830.0,0.003]
[1747333097607,0.563504,103840.0,103830.0,0.003]
[1747333097807,0.89680789,103840.0,103830.0,0.003]
[1747333099751,0.742344,103840.0,103830.0,0.003]
[1747333099981,0.548504,103840.0,103830.0,0.003]
[1747333100393,0.920324,103840.0,103830.0,0.003]
[1747333102601,0.532604,103840.0,103830.0,0.21062255]
[1747333102804,0.726444,103840.0,103830.0,0.23235367]
[1747333103008,0.726444,103840.0,103830.0,0.03973112]
[1747333103187,0.726444,103840.0,103830.0,0.018]
[1747333105300,0.726444,103840.0,103830.0,0.003]
[1747333105506,0.742844,103840.0,103830.0,0.003]
[1747333106042,1.07614789,103840.0,103830.0,0.003]
[1747333106438,1.05974789,103840.0,103830.0,0.003]
[1747333106646,0.726444,103840.0,103830.0,0.003]
[1747333108234,0.741744,103840.0,103830.0,0.003]
[1747333109955,0.726444,103840.0,103830.0,0.003]
[1747333110676,0.1938,103840.0,103830.0,0.2245148]
[1747333110889,0.21305789,103850.0,103840.0,0.24959347]
[1747333111019,0.42490057,103850.0,103840.0,0.23996392]
[1747333111233,0.00962955,103840.0,103830.0,0.34992412]
[1747333111433,0.21186374,103840.0,103830.0,0.1003094]
[1747333111641,0.55186374,103840.0,103830.0,0.0993094]
[1747333111843,0.55186374,103840.0,103830.0,0.0973094]
[1747333112292,0.21186374,103840.0,103830.0,0.29956289]
[1747333112591,0.02888919,103840.0,103830.0,0.34682411]
[1747333112753,0.41523205,103850.0,103840.0,0.23739347]
[1747333112938,0.03851578,103850.0,103840.0,0.24949347]
[1747333113140,0.2407305,103850.0,103840.0,0.24949365]
[1747333113338,0.04814505,103850.0,103840.0,0.25912329]
[1747333113542,0.61871916,103860.0,103850.0,0.23110104]
[1747333113762,0.61871916,103860.0,103850.0,0.23687261]
[1747333113947,0.61871916,103860.0,103850.0,0.24650141]
[1747333114148,0.61871916,103860.0,103850.0,0.25613012]
[1747333114750,0.6283475,103860.0,103850.0,0.25613012]
[1747333114955,0.61109166,103860.0,103850.0,0.20221472]
[1747333115164,0.62679166,103860.0,103850.0,0.2118439]
[1747333115600,0.6181635,103860.0,103850.0,0.2118439]
[1747333116020,0.00962899,103850.0,103840.0,0.31494322]
[1747333116259,0.02888687,103850.0,103840.0,0.33420287]
[1747333116489,0.03851549,103850.0,103840.0,0.3284326]
[1747333117164,0.03851549,103850.0,103840.0,0.3304326]
[1747333117531,0.02888641,103850.0,103840.0,0.3314326]
[1747333117929,0.01925742,103850.0,103840.0,0.3314326]
[1747333118153,0.02888641,103850.0,103840.0,0.3314326]
[1747333118363,0.03851549,103850.0,103840.0,0.3314326]
[1747333118566,0.57047659,103850.0,103840.0,0.003]
[1747333118771,0.5767476,103850.0,103840.0,0.2052342]
[1747333119127,0.5767476,103850.0,103840.0,0.003]
[1747333119510,0.5767476,103850.0,103840.0,0.2052342]
[1747333119704,0.5767476,103850.0,103840.0,0.0126302]
[1747333119915,0.5767476,103850.0,103840.0,0.003]
[1747333120109,0.7704676,103850.0,103840.0,0.003]
[1747333121338,1.17244833,103850.0,103840.0,0.003]
[1747333121602,1.86564833,103850.0,103840.0,0.003]
[1747333122028,1.26975773,103850.0,103840.0,0.003]
[1747333122232,1.207777,103850.0,103840.0,0.003]
[1747333122846,1.623777,103850.0,103840.0,0.003]
[1747333123255,1.623777,103850.0,103840.0,0.001]
[1747333123461,0.24318415,103830.0,103820.0,0.00248032]
[1747333123665,0.96388804,103830.0,103820.0,0.00248032]
[1747333125224,0.63058415,103830.0,103820.0,0.00648032]
[1747333125425,0.63058415,103830.0,103820.0,0.19912142]
[1747333125671,0.62494102,103830.0,103820.0,0.20875338]
[1747333125812,0.60545349,103830.0,103820.0,0.00648032]
[1747333126020,0.60545349,103830.0,103820.0,0.20875347]
[1747333126268,0.60545349,103830.0,103820.0,0.01611237]
[1747333126463,0.00963066,103830.0,103820.0,0.24064851]
[1747333126691,0.19368,103830.0,103820.0,0.35295708]
[1747333126816,1.23650973,103840.0,103830.0,0.2215148]
[1747333127034,1.25576966,103840.0,103830.0,0.2215148]
[1747333127710,1.26539976,103840.0,103830.0,0.2215148]
[1747333127927,1.26539976,103840.0,103830.0,0.2225148]
[1747333128133,1.26539976,103840.0,103830.0,0.2245148]
[1747333128393,1.26539921,103840.0,103830.0,0.2245148]
[1747333128616,1.0620892,103840.0,103830.0,0.2245148]
[1747333128902,1.07171921,103840.0,103830.0,0.2245148]
[1747333129806,1.27395331,103840.0,103830.0,0.2245148]
[1747333131812,1.27395396,103840.0,103830.0,0.2245148]
[1747333132233,1.26432423,103840.0,103830.0,0.21488433]
[1747333132619,1.2761643,103840.0,103830.0,0.20525367]
[1747333132819,1.2761643,103840.0,103830.0,0.2148847]
[1747333133226,1.2761643,103840.0,103830.0,0.22451554]
[1747333133610,1.2665342,103840.0,103830.0,0.2148847]
[1747333134025,1.2665342,103840.0,103830.0,0.22451564]
[1747333135214,1.07226341,103840.0,103830.0,0.003]
[1747333135430,2.04465755,103840.0,103830.0,0.003]
[1747333135652,2.05465755,103840.0,103830.0,0.003]
[1747333135874,7.10465755,103840.0,103830.0,0.001]
[1747333136099,0.70079434,103830.0,103820.0,0.00248032]
[1747333136325,6.80578092,103830.0,103820.0,0.00248032]
[1747333136590,1.75578092,103830.0,103820.0,0.00248032]
[1747333138558,1.45017067,103830.0,103820.0,0.00248032]
[1747333138768,1.50426678,103830.0,103820.0,0.00248032]
[1747333139194,1.10686678,103830.0,103820.0,0.00248032]
[1747333139405,1.29575738,103830.0,103820.0,0.00248032]
[1747333139616,0.90835738,103830.0,103820.0,0.00248032]
[1747333139832,1.62906127,103830.0,103820.0,0.00248032]
[1747333140039,1.39306678,103830.0,103820.0,0.00248032]
[1747333140274,1.72637067,103830.0,103820.0,0.00248032]
[1747333141002,1.29575738,103830.0,103820.0,0.00248032]
[1747333141628,1.98895738,103830.0,103820.0,0.00248032]
[1747333143658,1.60155738,103830.0,103820.0,0.00248032]
[1747333143860,1.98895738,103830.0,103820.0,0.00248032]
[1747333145716,1.26825349,103830.0,103820.0,0.00248032]
[1747333145917,1.65565349,103830.0,103820.0,0.00248032]
[1747333146129,1.60155738,103830.0,103820.0,0.00248032]
[1747333146338,1.98879738,103830.0,103820.0,0.00248032]
[1747333147308,2.43395152,103830.0,103820.0,0.00248032]
[1747333147524,1.74075152,103830.0,103820.0,0.00248032]
[1747333148553,1.19926678,103830.0,103820.0,0.00248032]
[1747333148767,1.00566678,103830.0,103820.0,0.00248032]
[1747333148999,1.39286678,103830.0,103820.0,0.00248032]
[1747333150395,1.82348007,103830.0,103820.0,0.00248032]
[1747333151422,1.94942092,103830.0,103820.0,0.00248032]
[1747333151619,1.98834092,103830.0,103820.0,0.00248032]
[1747333152828,1.99034092,103830.0,103820.0,0.00248032]
[1747333153262,0.58402496,103810.0,103800.0,0.002]
[1747333153466,1.75722999,103810.0,103800.0,0.00248082]
[1747333153825,1.74968299,103810.0,103800.0,0.00248082]
[1747333154033,1.76430246,103810.0,103800.0,0.00248082]
[1747333154458,1.77430246,103810.0,103800.0,0.00248082]
[1747333154996,1.87161186,103810.0,103800.0,0.00448082]
[1747333155395,1.77530246,103810.0,103800.0,0.00248082]
[1747333156230,1.77730246,103810.0,103800.0,0.00248082]
[1747333156800,1.41945772,103810.0,103800.0,0.00248082]
[1747333157005,1.84569772,103810.0,103800.0,0.00248082]
[1747333157258,1.51239383,103810.0,103800.0,0.00248082]
[1747333157458,2.29085186,103810.0,103800.0,0.00248082]
[1747333158034,2.30085186,103810.0,103800.0,0.00248082]
[1747333158329,2.32977586,103810.0,103800.0,0.00248082]
[1747333161454,7.37977586,103810.0,103800.0,0.00248082]
[1747333163471,0.21196581,103790.0,103780.0,0.002]
[1747333163670,1.0624591,103790.0,103780.0,0.00214413]
[1747333163883,0.6751791,103790.0,103780.0,0.00214413]
[1747333164086,1.0462591,103790.0,103780.0,0.00214413]
[1747333164327,0.6589791,103790.0,103780.0,0.00214413]
[1747333164530,0.21294902,103790.0,103780.0,0.22963036]